fUST/lending_fUST_20240904
["ID","MTS","AMOUNT","RATE_DAILY","PERIOD"]
[337125475,1725445844493,-500.0,0.00028219,2]
[337125476,1725445844502,-500.0,0.00028219,2]
[337125477,1725445844512,-500.0,0.00028219,2]
[337125478,1725445844521,-500.0,0.00028219,2]
[337125479,1725445844531,-500.0,0.00028219,2]
[337125480,1725445844540,-500.0,0.00028219,2]
[337125481,1725445844549,-500.0,0.00028219,2]
[337125482,1725445844559,-500.0,0.00028219,2]
[337125483,1725445844568,-500.0,0.00028219,2]
[337125484,1725445844577,-500.0,0.00028219,2]
[337125485,1725445844587,-500.0,0.00028219,2]
[337125486,1725445844597,-500.0,0.00028219,2]
[337125487,1725445844606,-500.0,0.00028219,2]
[337125488,1725445844617,-247.7547016,0.00028219,2]
[337125489,1725445844628,-500.0,0.00028219,2]
[337125490,1725445844638,-241.265692,0.00028219,2]
[337125491,1725445844648,-500.0,0.00028219,2]
[337125492,1725445844658,-500.0,0.00028219,2]
[337125493,1725445844667,-500.0,0.00028219,2]
[337125494,1725445844677,-500.0,0.00028219,2]
[337125495,1725445844686,-500.0,0.00028219,2]
[337125496,1725445844700,-500.0,0.00028219,2]
[337125497,1725445844711,-586.34,0.00028219,2]
[337125498,1725445844720,-500.0,0.00028219,2]
[337125499,1725445844730,-500.0,0.00028219,2]
[337125500,1725445844739,-449.60975543,0.00028219,2]
[337125501,1725445844749,-500.0,0.00028219,2]
[337125502,1725445844760,-500.0,0.00028219,2]
[337125503,1725445844771,-5431.35,0.00028219,2]
[337125504,1725445844783,-500.0,0.00028219,2]
[337125505,1725445844794,-1094.86,0.00028219,2]
[337125506,1725445844804,-3756.31,0.00028219,2]
[337125507,1725445844814,-1873.82,0.00028219,2]
[337125508,1725445844825,-500.0,0.00028219,2]
[337125509,1725445844836,-389.49,0.00028219,2]
[337125510,1725445844848,-500.0,0.00028219,2]
[337125511,1725445844860,-500.0,0.00028219,2]
[337125512,1725445844872,-561.19468107,0.00028219,2]
[337125513,1725445844882,-500.0,0.00028219,2]
[337125514,1725445844892,-3154.32,0.00028219,2]
[337125515,1725445844905,-1197.66,0.00028219,2]
[337125516,1725445844916,-588.3,0.00028219,2]
[337125517,1725445844927,-600.56,0.00028219,2]
[337125518,1725445844937,-991.44,0.00028219,2]
[337125519,1725445844950,-1781.5,0.00028219,2]
[337125520,1725445844960,-500.0,0.00028219,2]
[337125521,1725445844971,-500.0,0.00028219,2]
[337125522,1725445844981,-4543.71,0.00028219,2]
[337125523,1725445844991,-417.0,0.00028219,2]
[337125524,1725445845001,-304.6,0.00028219,2]
[337125525,1725445845013,-500.0,0.00028219,2]
[337125526,1725445845024,-155.59,0.00028219,2]
[337125527,1725445845035,-500.0,0.00028219,2]
[337125528,1725445845044,-500.0,0.00028219,2]
[337125529,1725445845054,-500.0,0.00028219,2]
[337125530,1725445845064,-500.0,0.00028219,2]
[337125531,1725445845074,-500.0,0.00028219,2]
[337125532,1725445845083,-519.81868692,0.00028219,2]
[337125533,1725445845092,-500.0,0.00028219,2]
[337125534,1725445845102,-500.0,0.00028219,2]
[337125535,1725445845111,-500.0,0.00028219,2]
[337125536,1725445845121,-500.0,0.00028219,2]
[337125537,1725445845130,-500.0,0.00028219,2]
[337125538,1725445845139,-500.0,0.00028219,2]
[337125539,1725445845148,-500.0,0.00028219,2]
[337125540,1725445845158,-500.0,0.00028233,2]
[337125541,1725445845167,-500.0,0.00028251,2]
[337125542,1725445845177,-190.70392364,0.00028273,5]
[337125543,1725445845186,-500.0,0.00028273,5]
[337125544,1725445845198,-500.0,0.00028292,2]
[337125545,1725445845208,-500.0,0.00028296,2]
[337125546,1725445845217,-501.33,0.000283,14]
[337125547,1725445845226,-1280.21,0.000283,7]
[337125548,1725445845235,-600.0,0.00028305,22]
[337125549,1725445845245,-500.0,0.00028314,2]
[337125550,1725445845254,-500.0,0.00028316,2]
[337125551,1725445845264,-500.0,0.00028349,2]
[337125552,1725445845274,-500.0,0.00028365,2]
[337125553,1725445845284,-500.0,0.00028446,2]
[337125554,1725445845294,-255.0334715,0.00028473,5]
[337125555,1725445845303,-97122.80952101,0.00028483,2]
[337125556,1725445845464,-500.00329276,0.00027397,2]
[337125557,1725445845473,-17941.83675199,0.00028483,2]
[337125558,1725445845482,-500.0,0.00028492,2]
[337125559,1725445845492,-897.69,0.00028492,2]
[337125560,1725445845501,-1356.47,0.00028492,2]
[337125561,1725445845511,-2324.26,0.00028492,2]
[337125562,1725445845520,-869.49,0.00028492,2]
[337125563,1725445845530,-224.44,0.00028492,2]
[337125564,1725445845539,-459.68,0.00028492,2]
[337125566,1725445845549,-500.0,0.00028492,2]
[337125568,1725445845558,-500.0,0.00028492,2]
[337125569,1725445845568,-500.0,0.00028492,2]
[337125570,1725445845577,-500.0,0.00028492,2]
[337125571,1725445845586,-280.26,0.00028492,2]
[337125572,1725445845595,-155.31,0.00028492,2]
[337125573,1725445845604,-2710.57,0.00028493,2]
[337125574,1725445845614,-500.0,0.00028493,2]
[337125575,1725445845624,-1541.42,0.00028493,2]
[337125576,1725445845633,-3258.81,0.00028493,2]
[337125577,1725445845643,-500.0,0.00028493,2]
[337125578,1725445845653,-1264.51,0.00028493,2]
[337125579,1725445845663,-9158.35,0.00028493,2]
[337125580,1725445845672,-500.0,0.00028493,2]
[337125581,1725445845681,-500.0,0.00028493,2]
[337125582,1725445845690,-500.0,0.00028493,2]
[337125583,1725445845702,-494.27,0.00028493,2]
[337125584,1725445845712,-582.53,0.00028493,2]
[337125585,1725445845721,-500.0,0.00028493,2]
[337125586,1725445845730,-500.0,0.00028493,2]
[337125587,1725445845740,-500.0,0.00028493,2]
[337125588,1725445845750,-500.0,0.00028493,2]
[337125589,1725445845760,-584.36,0.00028493,2]
[337125590,1725445845769,-500.0,0.00028493,2]
[337125591,1725445845778,-500.0,0.00028493,2]
[337125592,1725445845787,-500.0,0.00028493,2]
[337125593,1725445845796,-542.73,0.00028493,2]
[337125594,1725445845805,-500.0,0.00028493,2]
[337125595,1725445845814,-500.0,0.00028493,2]
[337125596,1725445845824,-500.0,0.00028493,2]
[337125597,1725445845833,-500.0,0.00028493,2]
[337125598,1725445845843,-302.87,0.00028493,2]
[337125599,1725445845853,-500.0,0.00028493,2]
[337125600,1725445845863,-500.0,0.00028493,2]
[337125601,1725445845872,-500.0,0.00028493,2]
[337125602,1725445845883,-500.0,0.00028493,2]
[337125603,1725445845892,-381.43,0.00028493,2]
[337125604,1725445845902,-500.0,0.00028493,2]
[337125605,1725445845911,-500.0,0.00028493,2]
[337125606,1725445845920,-1675.33,0.00028493,2]
[337125607,1725445845930,-426.7,0.00028493,2]
[337125608,1725445845941,-338.25,0.00028493,2]
[337125609,1725445845953,-500.0,0.00028493,2]
[337125610,1725445845962,-500.0,0.00028493,2]
[337125611,1725445845972,-500.0,0.00028493,2]
[337125612,1725445845981,-500.0,0.00028493,2]
[337125613,1725445845991,-416.74172737,0.00028493,2]
[337125614,1725445846000,-500.0,0.00028493,2]
[337125615,1725445846009,-311.19,0.00028493,2]
[337125616,1725445846019,-500.0,0.00028493,2]
[337125617,1725445846028,-616.99,0.00028493,2]
[337125618,1725445846037,-500.0,0.00028493,2]
[337125619,1725445846047,-500.0,0.00028493,2]
[337125620,1725445846055,-167.36,0.00028493,2]
[337125621,1725445846065,-338.25,0.00028493,2]
[337125622,1725445846074,-500.0,0.00028493,2]
[337125623,1725445846083,-534.00225714,0.00028493,2]
[337125624,1725445846092,-1458.75,0.00028493,2]
[337125625,1725445846102,-500.0,0.00028493,2]
[337125626,1725445846111,-500.0,0.00028493,2]
[337125627,1725445846120,-500.0,0.00028493,2]
[337125628,1725445846129,-500.0,0.00028493,2]
[337125629,1725445846138,-500.0,0.00028493,2]
[337125630,1725445846147,-500.0,0.00028493,2]
[337125631,1725445846157,-500.0,0.00028493,2]
[337125632,1725445846167,-517.42,0.00028493,2]
[337125633,1725445846176,-552.11,0.00028493,2]
[337125634,1725445846186,-500.0,0.00028493,2]
[337125635,1725445846198,-500.0,0.00028493,2]
[337125636,1725445846207,-500.0,0.00028493,2]
[337125637,1725445846217,-500.0,0.00028493,2]
[337125638,1725445846226,-500.0,0.00028493,2]
[337125639,1725445846236,-500.0,0.00028493,2]
[337125640,1725445846245,-500.0,0.00028493,2]
[337125641,1725445846254,-500.0,0.00028493,2]
[337125642,1725445846267,-500.0,0.00028493,2]
[337125643,1725445846275,-500.0,0.00028493,2]
[337125644,1725445846285,-500.0,0.00028493,2]
[337125645,1725445846295,-500.0,0.00028493,2]
[337125646,1725445846304,-500.0,0.00028493,2]
[337125647,1725445846314,-500.0,0.00028493,2]
[337125648,1725445846323,-514.13,0.00028493,2]
[337125649,1725445846332,-500.0,0.00028493,2]
[337125650,1725445846342,-339.33,0.00028493,2]
[337125651,1725445846351,-500.0,0.00028493,2]
[337125652,1725445846361,-500.0,0.00028493,2]
[337125653,1725445846370,-500.0,0.00028493,2]
[337125654,1725445846379,-500.0,0.00028493,2]
[337125655,1725445846388,-468.55912019,0.00028493,2]
[337125656,1725445846397,-500.0,0.00028493,2]
[337125657,1725445846406,-500.0,0.00028493,2]
[337125658,1725445846415,-500.0,0.00028493,2]
[337125659,1725445846424,-500.0,0.00028493,2]
[337125660,1725445846434,-500.0,0.00028493,2]
[337125661,1725445846444,-500.0,0.00028493,2]
[337125662,1725445846455,-500.0,0.00028493,2]
[337125663,1725445846465,-500.0,0.00028493,2]
[337125664,1725445846475,-500.0,0.00028493,2]
[337125665,1725445846484,-500.0,0.00028493,2]
[337125666,1725445846494,-500.0,0.00028493,2]
[337125667,1725445846504,-500.0,0.00028493,2]
[337125668,1725445846513,-500.0,0.00028493,2]
[337125669,1725445846522,-500.0,0.00028493,2]
[337125670,1725445846532,-500.0,0.00028493,2]
[337125671,1725445846541,-500.0,0.00028493,2]
[337125672,1725445846551,-500.0,0.00028493,2]
[337125673,1725445846560,-500.0,0.00028493,2]
[337125674,1725445846570,-500.0,0.00028493,2]
[337125675,1725445846579,-340.49010416,0.00028493,2]
[337125676,1725445846588,-378.70455249,0.00028493,2]
[337125677,1725445846597,-500.0,0.00028493,2]
[337125678,1725445846606,-500.0,0.00028493,2]
[337125679,1725445846615,-500.0,0.00028493,2]
[337125680,1725445846624,-500.0,0.00028493,2]
[337125681,1725445846633,-457.77,0.00028493,2]
[337125682,1725445846642,-500.0,0.00028493,2]
[337125683,1725445846651,-500.0,0.00028493,2]
[337125684,1725445846660,-500.0,0.00028493,2]
[337125685,1725445846669,-500.0,0.00028493,2]
[337125686,1725445846678,-500.0,0.00028493,2]
[337125687,1725445846687,-500.0,0.00028493,2]
[337125688,1725445846697,-500.0,0.00028493,2]
[337125689,1725445846708,-619.63681502,0.00028493,2]
[337125690,1725445846717,-500.0,0.00028493,2]
[337125691,1725445846726,-177.08501391,0.00028493,2]
[337125692,1725445846736,-339.14,0.00028493,2]
[337125693,1725445846746,-500.0,0.00028493,2]
[337125694,1725445846756,-500.0,0.00028493,2]
[337125695,1725445846766,-500.0,0.00028493,2]
[337125696,1725445846776,-500.0,0.00028493,2]
[337125697,1725445846786,-500.0,0.00028493,2]
[337125698,1725445846797,-500.0,0.00028493,2]
[337125699,1725445846808,-500.0,0.00028493,2]
[337125700,1725445846818,-500.0,0.00028493,2]
[337125701,1725445846829,-500.0,0.00028493,2]
[337125702,1725445846838,-500.0,0.00028493,2]
[337125703,1725445846848,-504.93816067,0.00028493,2]
[337125704,1725445846859,-576.04,0.00028493,2]
[337125705,1725445846869,-500.0,0.00028493,2]
[337125706,1725445846879,-500.0,0.00028493,2]
[337125707,1725445846889,-501.7,0.00028493,2]
[337125708,1725445846898,-500.0,0.00028493,2]
[337125709,1725445846909,-500.0,0.00028493,2]
[337125710,1725445846920,-500.0,0.00028493,2]
[337125711,1725445846931,-500.0,0.00028493,2]
[337125712,1725445846942,-500.0,0.00028493,2]
[337125713,1725445846954,-500.0,0.00028493,2]
[337125714,1725445846966,-500.0,0.00028493,2]
[337125715,1725445846975,-500.0,0.00028493,2]
[337125716,1725445846987,-344.77991807,0.00028493,2]
[337125717,1725445846996,-500.0,0.00028493,2]
[337125718,1725445847005,-500.0,0.00028493,2]
[337125719,1725445847014,-500.0,0.00028493,2]
[337125720,1725445847023,-500.0,0.00028493,2]
[337125721,1725445847033,-369.10333466,0.00028493,2]
[337125722,1725445847041,-500.0,0.00028493,2]
[337125723,1725445847051,-500.0,0.00028493,2]
[337125724,1725445847060,-500.0,0.00028493,2]
[337125725,1725445847069,-275.81486992,0.00028493,2]
[337125726,1725445847078,-272.22006017,0.00028493,2]
[337125727,1725445847087,-500.0,0.00028493,2]
[337125728,1725445847097,-500.0,0.00028493,2]
[337125729,1725445847107,-500.0,0.00028493,2]
[337125730,1725445847116,-268.34,0.00028493,2]
[337125731,1725445847126,-500.0,0.00028493,2]
[337125732,1725445847136,-500.0,0.00028493,2]
[337125733,1725445847259,-500.0,0.00028493,2]
[337125734,1725445847271,-500.0,0.00028493,2]
[337125735,1725445847281,-500.0,0.00028493,2]
[337125736,1725445847290,-500.0,0.00028493,2]
[337125737,1725445847299,-500.0,0.00028493,2]
[337125738,1725445847308,-500.0,0.00028493,2]
[337125739,1725445847317,-421.24,0.00028493,2]
[337125740,1725445847327,-500.0,0.00028493,2]
[337125741,1725445847335,-500.0,0.00028493,2]
[337125742,1725445847345,-500.0,0.00028493,2]
[337125743,1725445847355,-500.0,0.00028493,2]
[337125744,1725445847364,-500.0,0.00028493,2]
[337125745,1725445847373,-500.0,0.00028493,2]
[337125746,1725445847382,-533.82,0.00028493,2]
[337125747,1725445847391,-500.0,0.00028493,2]
[337125748,1725445847401,-757.1,0.00028493,2]
[337125749,1725445847410,-1443.32,0.00028493,2]
[337125750,1725445847419,-500.0,0.00028493,2]
[337125751,1725445847428,-919.4,0.00028493,2]
[337125752,1725445847438,-500.0,0.00028493,2]
[337125753,1725445847447,-500.0,0.00028493,2]
[337125754,1725445847459,-500.0,0.00028493,2]
[337125755,1725445847469,-500.0,0.00028493,2]
[337125756,1725445847478,-1142.63,0.00028493,2]
[337125757,1725445847487,-500.0,0.00028493,2]
[337125758,1725445847497,-500.0,0.00028493,2]
[337125759,1725445847511,-500.0,0.00028493,2]
[337125760,1725445847520,-500.0,0.00028493,2]
[337125761,1725445847530,-500.0,0.00028493,2]
[337125762,1725445847539,-222.08,0.00028493,2]
[337125763,1725445847549,-500.0,0.00028493,2]
[337125764,1725445847559,-500.0,0.00028493,2]
[337125765,1725445847569,-500.0,0.00028493,2]
[337125766,1725445847579,-500.0,0.00028493,2]
[337125767,1725445847588,-500.0,0.00028493,2]
[337125768,1725445847598,-500.0,0.00028493,2]
[337125769,1725445847607,-445.50123089,0.00028493,2]
[337125770,1725445847617,-500.0,0.00028493,2]
[337125771,1725445847626,-500.0,0.00028493,2]
[337125772,1725445847636,-500.0,0.00028493,2]
[337125773,1725445847646,-500.0,0.00028493,2]
[337125774,1725445847656,-500.0,0.00028493,2]
[337125775,1725445847666,-500.0,0.00028493,2]
[337125776,1725445847676,-500.0,0.00028493,2]
[337125777,1725445847685,-271.44,0.00028493,2]
[337125778,1725445847695,-500.0,0.00028493,2]
[337125779,1725445847709,-525.36,0.00028493,2]
[337125780,1725445847718,-500.0,0.00028493,2]
[337125781,1725445847728,-500.0,0.00028493,2]
[337125782,1725445847737,-500.0,0.00028493,2]
[337125783,1725445847747,-500.0,0.00028493,2]
[337125784,1725445847756,-500.0,0.00028493,2]
[337125785,1725445847765,-500.0,0.00028493,2]
[337125786,1725445847776,-500.0,0.00028493,2]
[337125787,1725445847785,-500.0,0.00028493,2]
[337125788,1725445847795,-500.0,0.00028493,2]
[337125789,1725445847804,-500.0,0.00028493,2]
[337125790,1725445847814,-500.0,0.00028493,2]
[337125791,1725445847823,-500.0,0.00028493,2]
[337125792,1725445847832,-500.0,0.00028493,2]
[337125793,1725445847841,-500.0,0.00028493,2]
[337125794,1725445847851,-1094.86,0.00028493,2]
[337125795,1725445847860,-3756.31,0.00028493,2]
[337125796,1725445847869,-1873.82,0.00028493,2]
[337125797,1725445847879,-500.0,0.00028493,2]
[337125798,1725445847889,-587.43,0.00028493,2]
[337125799,1725445847898,-3154.32,0.00028493,2]
[337125800,1725445847907,-1197.66,0.00028493,2]
[337125801,1725445847917,-588.3,0.00028493,2]
[337125802,1725445847927,-600.56,0.00028493,2]
[337125803,1725445847936,-991.44,0.00028493,2]
[337125804,1725445847945,-1781.5,0.00028493,2]
[337125805,1725445847956,-500.0,0.00028493,2]
[337125806,1725445847966,-500.0,0.00028493,2]
[337125807,1725445847979,-1704.9928346,0.00028493,2]
[337125808,1725445848107,-500.0,0.00027397,2]
[337125809,1725445848117,-500.0,0.00027397,2]
[337125810,1725445848126,-500.0,0.00027671,2]
[337125811,1725445848135,-500.0,0.00027671,2]
[337125812,1725445848145,-500.0,0.00027945,2]
[337125813,1725445848154,-500.0,0.00027945,2]
[337125814,1725445848164,-500.0,0.00028219,2]
[337125815,1725445848174,-500.0,0.00028219,2]
[337125816,1725445848183,-2838.7171654,0.00028493,2]
[337125817,1725445848195,-412.8,0.00028493,2]
[337125818,1725445848205,-500.0,0.00028493,2]
[337125819,1725445848215,-500.0,0.00028493,2]
[337125820,1725445848225,-500.0,0.00028493,2]
[337125821,1725445848235,-500.0,0.00028493,2]
[337125822,1725445848244,-500.0,0.00028493,2]
[337125823,1725445848253,-500.0,0.00028493,2]
[337125824,1725445848262,-500.0,0.00028493,2]
[337125825,1725445848274,-500.0,0.00028493,2]
[337125826,1725445848284,-500.0,0.00028493,2]
[337125827,1725445848294,-516.34693682,0.00028493,2]
[337125828,1725445848304,-500.0,0.00028493,2]
[337125829,1725445848314,-500.0,0.00028493,2]
[337125830,1725445848324,-500.0,0.00028493,2]
[337125831,1725445848333,-500.0,0.00028493,2]
[337125832,1725445848342,-361.23219094,0.00028766,2]
[337125833,1725445848351,-897.69,0.00028766,2]
[337125834,1725445848361,-1356.47,0.00028766,2]
[337125835,1725445848372,-2324.26,0.00028766,2]
[337125836,1725445848382,-869.49,0.00028766,2]
[337125837,1725445848392,-500.0,0.00028766,2]
[337125838,1725445848401,-500.0,0.00028766,2]
[337125839,1725445848411,-500.0,0.00028766,2]
[337125840,1725445848421,-500.0,0.00028766,2]
[337125841,1725445848431,-2710.57,0.00028767,2]
[337125842,1725445848441,-500.0,0.00028767,2]
[337125843,1725445848451,-1541.42,0.00028767,2]
[337125844,1725445848460,-3258.81,0.00028767,2]
[337125845,1725445848470,-500.0,0.00028767,2]
[337125846,1725445848481,-1264.51,0.00028767,2]
[337125847,1725445848492,-1719.54915741,0.00028767,2]
[337125883,1725446754167,-220.028643,0.00023892,2]
[337125884,1725446754190,-599.219975,0.00024658,2]
[337125885,1725446754218,-142.74592642,0.00024836,2]
[337125886,1725446757117,-14.66591058,0.00024836,2]
[337125887,1725446757139,-300.0,0.00024867,2]
[337125888,1725446757161,-300.0,0.00024867,2]
[337125889,1725446757184,-945.13627009,0.00024868,2]
[337125896,1725446832099,-300.0,0.00024867,2]
[337125897,1725446832121,-300.0,0.00024867,2]
[337125898,1725446832144,-3320.66345083,0.00024868,2]
[337125899,1725446832174,-1479.75703933,0.00024868,2]
[337125900,1725446837118,-360.47151522,0.00024868,2]
[337125901,1725446847200,-450.0,0.00024868,2]
[337125902,1725446849140,-13086.89110593,0.00024868,2]
[337125903,1725446849182,-3013.56357197,0.00024994,2]
[337125904,1725446852099,-647.82141906,0.00024994,2]
[337125963,1725447032033,-1004.25000015,0.00024994,2]
[337126005,1725447038080,-5210.47956832,0.00024994,2]
[337126007,1725447038092,-163.0,0.00025,2]
[337126010,1725447038110,-180.9383862,0.00025108,2]
[337126013,1725447038124,-157.411837,0.00025208,2]
[337126014,1725447038135,-157.411837,0.0002529,2]
[337126016,1725447038146,-157.411837,0.00025373,2]
[337126017,1725447038156,-157.411837,0.00025455,2]
[337126019,1725447038166,-157.411837,0.00025537,2]
[337126020,1725447038176,-157.411837,0.00025619,2]
[337126022,1725447038186,-157.411837,0.00025701,2]
[337126023,1725447038196,-157.411837,0.00025783,2]
[337126024,1725447038206,-157.411837,0.00025865,2]
[337126025,1725447038216,-163.0,0.0002589,2]
[337126026,1725447038228,-157.411837,0.00025947,2]
[337126028,1725447038239,-465.5102612,0.00025979,2]
[337126029,1725447038249,-157.411837,0.00026029,2]
[337126031,1725447038258,-600.0,0.00026044,12]
[337126032,1725447038269,-157.411837,0.00026112,2]
[337126034,1725447038279,-157.411837,0.00026194,2]
[337126036,1725447038288,-300.0,0.00026272,2]
[337126037,1725447038298,-300.0,0.00026273,2]
[337126039,1725447038308,-157.411837,0.00026276,2]
[337126040,1725447038317,-157.411837,0.00026358,2]
[337126041,1725447038326,-157.411837,0.0002644,2]
[337126043,1725447038336,-157.411837,0.00026522,2]
[337126045,1725447038345,-184.49559881,0.00027267,2]
[337126047,1725447038356,-184.4955988,0.00027275,2]
[337126048,1725447038366,-1000.0,0.00027277,2]
[337126050,1725447038377,-184.4955988,0.00027282,2]
[337126051,1725447038388,-184.4955988,0.0002729,2]
[337126053,1725447038400,-184.4955988,0.00027297,2]
[337126055,1725447038410,-158.78,0.00027357,3]
[337126057,1725447038422,-793.92,0.00027357,3]
[337126058,1725447038432,-277.39229995,0.00027366,2]
[337126059,1725447038441,-259.90655462,0.00027366,2]
[337126061,1725447038451,-393.4079273,0.00027366,2]
[337126063,1725447038463,-500.0,0.00027366,2]
[337126065,1725447038473,-240.10061209,0.00027366,2]
[337126066,1725447038483,-500.0,0.00027366,2]
[337126068,1725447038493,-500.0,0.00027366,2]
[337126070,1725447038503,-500.0,0.00027366,2]
[337126071,1725447038512,-500.0,0.00027366,2]
[337126073,1725447038523,-500.0,0.00027366,2]
[337126075,1725447038532,-594.18827306,0.00027366,2]
[337126076,1725447038542,-500.0,0.00027366,2]
[337126078,1725447038552,-500.0,0.00027366,2]
[337126080,1725447038564,-500.0,0.00027366,2]
[337126082,1725447038576,-500.0,0.00027366,2]
[337126083,1725447038587,-500.0,0.00027366,2]
[337126085,1725447038597,-199.37279291,0.00027366,2]
[337126086,1725447038606,-727.76841638,0.00027366,15]
[337126088,1725447038617,-271429.457546,0.00027367,3]
[337126090,1725447038628,-102883.91945223,0.00027367,2]
[337126092,1725447038643,-2901.5366963,0.00027367,2]
[337126096,1725447038686,-4909.98369816,0.00027367,2]
[337126135,1725447040175,-29854.50000001,0.00027367,2]
[337126138,1725447040189,-501.98208771,0.00027367,2]
[337126141,1725447040201,-60543.34224831,0.00027367,2]
[337126253,1725447042989,-5295.36,0.00027367,2]
[337126254,1725447043004,-34071.86545057,0.00027367,2]
[337126255,1725447043090,-791.2784889,0.00027367,2]
[337126289,1725447046073,-625.20100047,0.00027367,2]
[337126302,1725447046190,-265.95,0.00027367,2]
[337126304,1725447046202,-2328.37972512,0.00027367,2]
[337126439,1725447629865,738.47963767,0.0001,2]
[337126441,1725447935455,-181.036056,0.00024646,2]
[337126442,1725447935477,-599.220332,0.00024658,2]
[337126443,1725447935498,-673.56483007,0.00025,3]
[337126444,1725447951170,-737.91991918,0.00025,3]
[337126445,1725448026861,-559.43320703,0.00025,3]
[337126446,1725448034143,-2785.04276216,0.00025,3]
[337126447,1725448040796,-261.03928156,0.00025,3]
[337126448,1725448040821,-196.366547,0.00025806,2]
[337126449,1725448040842,-289.19751622,0.00025806,2]
[337126450,1725448044168,-10.80248378,0.00025806,2]
[337126451,1725448044191,-300.0,0.00025806,2]
[337126452,1725448044213,-2299.86688545,0.00025807,2]
[337126453,1725448045137,-515.38397089,0.00025807,2]
[337127137,1725448232852,-259.50009799,0.00025,12]
[337127138,1725448232863,-243.91990201,0.00025,12]
[337127139,1725448232873,-300.0,0.00025806,2]
[337127140,1725448232882,-289.90707799,0.00025806,2]
[337127172,1725448238360,-10.09292201,0.00025806,2]
[337127174,1725448238372,-9501.71961006,0.00025807,2]
[337127176,1725448238386,-150.896,0.00026311,2]
[337127179,1725448238396,-523.0,0.00026311,2]
[337127181,1725448238406,-150.55449172,0.00026777,2]
[337127183,1725448238415,-1000.0,0.00027,2]
[337127185,1725448238435,-1000.0,0.00027277,2]
[337127187,1725448238445,-1571.72019108,0.00027277,2]
[337127189,1725448238456,-1571.72019105,0.00027282,2]
[337127191,1725448238466,-1571.72019105,0.00027287,2]
[337127193,1725448238476,-1571.72019105,0.00027292,2]
[337127195,1725448238487,-1571.72019105,0.00027297,2]
[337127197,1725448238497,-500.0,0.00027367,21]
[337127199,1725448238507,-500.0,0.00027373,2]
[337127202,1725448238518,-156.8571277,0.00027373,2]
[337127204,1725448238531,-310.18713937,0.00027373,2]
[337127206,1725448238541,-319.3742308,0.00027373,2]
[337127208,1725448238551,-500.0,0.00027373,2]
[337127210,1725448238560,-500.0,0.00027373,2]
[337127212,1725448238570,-500.36432075,0.00027373,2]
[337127214,1725448238580,-500.0,0.00027373,2]
[337127216,1725448238590,-500.0,0.00027373,2]
[337127218,1725448238600,-232.71,0.00027377,3]
[337127220,1725448238610,-193.92,0.00027377,3]
[337127222,1725448238620,-500.0,0.00027386,2]
[337127224,1725448238630,-406.16251473,0.00027386,2]
[337127226,1725448238643,-500.0,0.00027386,2]
[337127229,1725448238654,-225.00643771,0.00027386,2]
[337127231,1725448238665,-293.32311164,0.00027386,2]
[337127232,1725448238680,-500.0,0.00027386,2]